fUSD/lending_fUSD_20260301
["ID","MTS","AMOUNT","RATE_DAILY","PERIOD"]
[406961700,1772359841448,-4999.99,0.00016116,2]
[406961701,1772359841458,-999.99,0.00016116,2]
[406961702,1772359841468,-499.99,0.00016116,2]
[406961703,1772359841643,-1205.7,0.00016116,2]
[406961704,1772359841652,-9999.99,0.00016116,2]
[406961705,1772359841662,-299.99,0.00016116,4]
[406961706,1772359841671,-9999.99,0.00016116,2]
[406961707,1772359841681,-9999.99,0.00016116,2]
[406961708,1772359841690,-9999.99,0.00016116,2]
[406961709,1772359841699,-529.28,0.00016116,2]
[406961710,1772359841708,-9999.99,0.00016116,2]
[406961711,1772359841718,-179686.35,0.00016116,2]
[406961712,1772359841728,-150.99,0.00016116,2]
[406961713,1772359841738,-5000.00387383,0.000162,5]
[406961714,1772359841748,-174.09452548,0.00016272,2]
[406961715,1772359841760,-160.0,0.00016272,2]
[406961716,1772359841769,-200.0,0.0001634,2]
[406961717,1772359841779,-3786.1767189,0.00016344,2]
[406961718,1772359841789,-160.0,0.000164,2]
[406961719,1772359841800,-845.0,0.000164,2]
[406961720,1772359841809,-150.0,0.00016411,2]
[406961721,1772359841819,-2000.0,0.00016416,2]
[406961722,1772359841830,-153.04785948,0.00016438,2]
[406961723,1772359841840,-150.0,0.00016438,2]
[406961724,1772359841849,-2000.0,0.00016438,2]
[406961725,1772359841859,-900.0,0.00016438,2]
[406961726,1772359841868,-1999.0,0.00016438,2]
[406961727,1772359841877,-604.16,0.00016441,2]
[406961728,1772359841888,-45648.36817952,0.00016472,2]
[406961729,1772359841898,-150.0,0.0001648,2]
[406961730,1772359841908,-250.0,0.0001648,2]
[406961731,1772359841918,-150.141,0.0001648,2]
[406961732,1772359841927,-150.126,0.0001648,2]
[406961733,1772359841937,-150.0,0.0001648,2]
[406961734,1772359841946,-3500.0,0.0001648,2]
[406961735,1772359841956,-1340.0,0.0001648,2]
[406961736,1772359841966,-1041.0,0.0001648,2]
[406961737,1772359841975,-1278.0,0.0001648,2]
[406961738,1772359841985,-1211.0,0.0001648,2]
[406961739,1772359841995,-921.0,0.0001648,2]
[406961740,1772359842005,-2457.0,0.0001648,2]
[406961741,1772359842016,-432.622,0.0001648,2]
[406961742,1772359842026,-5985.0,0.0001648,2]
[406961743,1772359842036,-19219.73555751,0.00016488,2]
[406961744,1772359842045,-500.0,0.00016495,2]
[406961745,1772359842056,-362.09319659,0.000166,2]
[406961746,1772359842066,-166.4,0.00016712,2]
[406961747,1772359842076,-215.16,0.00016721,2]
[406961748,1772359842087,-154.27,0.00016803,2]
[406961749,1772359842096,-10900.0,0.000169,6]
[406961750,1772359842107,-211.84948894,0.000169,2]
[406961751,1772359842117,-166.8729219,0.000169,2]
[406961752,1772359842126,-185.08481033,0.000169,2]
[406961753,1772359842136,-298.32204772,0.000169,2]
[406961754,1772359842145,-150.0,0.00016938,7]
[406961755,1772359842155,-1979.36214283,0.00016964,2]
[406961756,1772359842165,-202.55697905,0.00016986,2]
[406961757,1772359842175,-1838.48096911,0.00016992,2]
[406961758,1772359842185,-736410.84442181,0.00017,2]
[406961759,1772359842195,-300.0,0.00017,2]
[406961760,1772359842204,-500.0,0.00017,5]
[406961761,1772359842213,-500.0,0.00017,2]
[406961762,1772359842223,-228.53277993,0.00017,2]
[406961763,1772359842233,-2000.0,0.0001701,2]
[406961764,1772359842242,-661.0,0.00017069,2]
[406961765,1772359842251,-1691.0,0.00017069,2]
[406961766,1772359842261,-500.0,0.00017098,2]
[406961767,1772359842270,-644.79446246,0.00017099,2]
[406961768,1772359842279,-151.0,0.00017099,2]
[406961769,1772359842289,-500.0,0.00017099,2]
[406961770,1772359842299,-500.0,0.00017099,2]
[406961771,1772359842309,-500.0,0.00017099,2]
[406961772,1772359842318,-500.0,0.00017099,2]
[406961773,1772359842328,-500.0,0.00017099,2]
[406961774,1772359842337,-500.0,0.00017099,2]
[406961775,1772359842346,-500.0,0.00017099,2]
[406961776,1772359842356,-500.0,0.00017099,2]
[406961777,1772359842365,-500.0,0.00017099,2]
[406961778,1772359842374,-500.0,0.00017099,2]
[406961779,1772359842383,-500.0,0.00017099,2]
[406961780,1772359842392,-500.0,0.00017099,2]
[406961781,1772359842401,-500.0,0.00017099,2]
[406961782,1772359842410,-158.373817,0.000171,2]
[406961783,1772359842419,-5028.47844898,0.000171,2]
[406961784,1772359842428,-2000.0,0.000171,2]
[406961785,1772359842437,-1000.0,0.00017107,2]
[406961786,1772359842447,-171.2232,0.0001711,2]
[406961787,1772359842456,-171.2232,0.0001711,2]
[406961788,1772359842466,-171.2232,0.0001711,2]
[406961789,1772359842475,-171.2232,0.0001711,2]
[406961790,1772359842484,-171.2232,0.0001711,2]
[406961791,1772359842493,-171.2232,0.0001711,2]
[406961792,1772359842502,-3786.1767189,0.00017122,2]
[406961793,1772359842511,-668.65185757,0.00017154,2]
[406961794,1772359842520,-151.0,0.00017154,2]
[406961795,1772359842529,-45648.36817952,0.00017186,2]
[406961796,1772359842538,-19219.73555751,0.00017194,2]
[406961798,1772359842549,-2614.0,0.000172,2]
[406961800,1772359842558,-500.0,0.00017208,2]
[406961802,1772359842567,-693.3919763,0.00017209,2]
[406961803,1772359842576,-151.0,0.00017209,2]
[406961804,1772359842585,-719.04747942,0.00017264,2]
[406961806,1772359842594,-151.0,0.00017264,2]
[406961808,1772359842603,-5822.452765,0.00017275,7]
[406961810,1772359842612,-25859.255286,0.00017275,7]
[406961812,1772359842621,-745.65223616,0.00017319,2]
[406961814,1772359842630,-604.16,0.00017354,2]
[406961816,1772359842639,-845.0,0.0001736,2]
[406961818,1772359842648,-1639.0,0.0001736,2]
[406961820,1772359842657,-160.0,0.0001736,2]
[406961821,1772359842666,-176.0,0.0001736,2]
[406961823,1772359842675,-773.2413689,0.00017374,2]
[406961825,1772359842684,-211.84948894,0.000174,2]
[406961827,1772359842693,-801.85129955,0.00017429,2]
[406961829,1772359842702,-291.0,0.00017458,2]
[406961831,1772359842712,-831.51979763,0.00017484,2]
[406961833,1772359842721,-13600.0,0.000175,6]
[406961835,1772359842730,-862.28603014,0.00017539,2]
[406961836,1772359842740,-168.0,0.00017543,2]
[406961837,1772359842748,-168.0,0.00017594,2]
[406961838,1772359842757,-894.19061326,0.00017594,2]
[406961839,1772359842771,-1399.848,0.000176,2]
[406961840,1772359842780,-173.053,0.000176,2]
[406961841,1772359842789,-2700.0,0.000176,6]
[406961842,1772359842798,-155.23642035,0.00017616,2]
[406961843,1772359842809,-679.36814454,0.0001764,2]
[406961844,1772359842819,-927.27566595,0.00017649,2]
[406961845,1772359842828,-150.0,0.00017698,2]
[406961846,1772359842838,-150.0,0.00017698,2]
[406961847,1772359842847,-150.0,0.00017698,2]
[406961848,1772359842856,-175.03472584,0.00017698,2]
[406961849,1772359842865,-168.48002279,0.00017698,2]
[406961850,1772359842874,-1224.0,0.00017698,2]
[406961851,1772359842883,-156.61610602,0.00017698,2]
[406961852,1772359842892,-150.0,0.00017698,2]
[406961853,1772359842902,-150.0,0.00017698,2]
[406961854,1772359842911,-154.39853483,0.00017698,2]
[406961855,1772359842920,-500.0,0.00017698,2]
[406961856,1772359842929,-150.0,0.00017698,2]
[406961857,1772359842938,-152.83663743,0.00017698,2]
[406961858,1772359842947,-150.0,0.00017698,2]
[406961859,1772359842956,-150.0,0.00017698,2]
[406961860,1772359842966,-158.97400468,0.00017698,2]
[406961861,1772359842975,-291.88203118,0.00017698,2]
[406961862,1772359842983,-150.0,0.00017698,2]
[406961863,1772359842992,-500.0,0.00017698,2]
[406961864,1772359843001,-500.0,0.00017698,2]
[406961865,1772359843010,-150.0,0.00017698,2]
[406961866,1772359843019,-500.0,0.00017698,2]
[406961867,1772359843028,-150.0,0.00017698,2]
[406961868,1772359843037,-150.0,0.00017698,2]
[406961869,1772359843046,-150.0,0.00017698,2]
[406961870,1772359843054,-150.0,0.00017698,2]
[406961871,1772359843064,-253.71937149,0.00017698,2]
[406961872,1772359843073,-500.0,0.00017698,2]
[406961873,1772359843082,-150.0,0.00017698,2]
[406961874,1772359843091,-500.0,0.00017698,2]
[406961875,1772359843101,-207.02550713,0.00017698,2]
[406961876,1772359843110,-500.0,0.00017698,2]
[406961877,1772359843124,-214.56343636,0.00017698,2]
[406961878,1772359843133,-161.1779493,0.00017698,2]
[406961879,1772359843142,-150.0,0.00017698,2]
[406961880,1772359843151,-500.0,0.00017698,2]
[406961881,1772359843161,-352.14966213,0.000177,2]
[406961882,1772359843170,-2700.0,0.000177,6]
[406961883,1772359843179,-961.58486559,0.00017704,2]
[406961884,1772359843188,-500.0,0.00017727,2]
[406961885,1772359843197,-168.0,0.00017744,2]
[406961886,1772359843207,-150.0,0.00017753,2]
[406961887,1772359843217,-153.66172219,0.00017753,2]
[406961888,1772359843226,-151.55486475,0.00017753,2]
[406961889,1772359843236,-1224.0,0.00017753,2]
[406961890,1772359843247,-150.0,0.00017753,2]
[406961891,1772359843256,-150.0,0.00017753,2]
[406961892,1772359843265,-500.0,0.00017753,2]
[406961893,1772359843274,-162.2713494,0.00017753,2]
[406961894,1772359843284,-153.06287491,0.00017753,2]
[406961895,1772359843294,-150.0,0.00017753,2]
[406961896,1772359843305,-500.0,0.00017753,2]
[406961897,1772359843315,-500.0,0.00017753,2]
[406961898,1772359843324,-150.0,0.00017753,2]
[406961899,1772359843335,-500.0,0.00017753,2]
[406961900,1772359843345,-153.8363013,0.00017753,2]
[406961901,1772359843356,-150.0,0.00017753,2]
[406961902,1772359843365,-553.10721264,0.00017753,2]
[406961903,1772359843374,-150.0,0.00017753,2]
[406961904,1772359843384,-500.0,0.00017753,2]
[406961905,1772359843394,-500.0,0.00017753,2]
[406961906,1772359843404,-150.0,0.00017753,2]
[406961907,1772359843413,-500.0,0.00017753,2]
[406961908,1772359843423,-997.16350561,0.00017759,2]
[406961909,1772359843432,-168.0,0.0001779,2]
[406961910,1772359843442,-2700.0,0.000178,6]
[406961911,1772359843453,-150.0,0.00017808,2]
[406961912,1772359843462,-1224.0,0.00017808,2]
[406961913,1772359843472,-150.0,0.00017808,2]
[406961914,1772359843482,-150.0,0.00017808,2]
[406961915,1772359843491,-500.0,0.00017808,2]
[406961916,1772359843501,-150.0,0.00017808,2]
[406961917,1772359843510,-500.0,0.00017808,2]
[406961918,1772359843519,-500.0,0.00017808,2]
[406961919,1772359843529,-165.94619115,0.00017808,2]
[406961920,1772359843538,-500.0,0.00017808,2]
[406961921,1772359843547,-150.0,0.00017808,2]
[406961922,1772359843556,-500.0,0.00017808,2]
[406961923,1772359843565,-400.0,0.00017808,2]
[406961924,1772359843575,-150.0,0.00017808,2]
[406961925,1772359843585,-500.0,0.00017808,2]
[406961926,1772359843704,-5000.0,0.00017808,2]
[406961927,1772359843714,-500.0,0.00017808,2]
[406961928,1772359843723,-800.0,0.00017808,2]
[406961929,1772359843732,-167.19273963,0.00017862,2]
[406961930,1772359843742,-1224.0,0.00017862,2]
[406961931,1772359843751,-230.5137839,0.00017862,2]
[406961932,1772359843765,-150.0,0.00017862,2]
[406961933,1772359843775,-500.0,0.00017862,2]
[406961934,1772359843784,-500.0,0.00017862,2]
[406961935,1772359843795,-150.0,0.00017862,2]
[406961936,1772359843806,-500.0,0.00017862,2]
[406961937,1772359843817,-500.0,0.00017862,2]
[406961938,1772359843827,-254.40853203,0.00017862,2]
[406961939,1772359843837,-500.0,0.00017862,2]
[406961940,1772359843847,-500.0,0.00017863,2]
[406961941,1772359843855,-1000.0,0.00017894,2]
[406961942,1772359843865,-733.851,0.00017894,2]
[406961943,1772359843874,-500.0,0.00017899,2]
[406961944,1772359843883,-500.0,0.00017899,2]
[406961945,1772359843895,-10000.0,0.000179,2]
[406961946,1772359843904,-45648.36817952,0.000179,2]
[406961947,1772359843914,-2700.0,0.000179,6]
[406961948,1772359843925,-211.84948894,0.000179,2]
[406961949,1772359843935,-1838.48096911,0.000179,2]
[406961950,1772359843945,-19219.73555751,0.000179,2]
[406961951,1772359843955,-3786.1767189,0.000179,2]
[406961952,1772359843965,-7131.0,0.000179,2]
[406961953,1772359843974,-150.0,0.00017917,2]
[406961954,1772359843983,-1224.0,0.00017917,2]
[406961955,1772359843992,-500.0,0.00017917,2]
[406961956,1772359844003,-500.0,0.00017917,2]
[406961957,1772359844012,-150.0,0.00017917,2]
[406961958,1772359844023,-500.0,0.00017917,2]
[406961959,1772359844034,-150.62440252,0.00017917,2]
[406961960,1772359844043,-500.0,0.00017917,2]
[406961961,1772359844054,-500.0,0.00017918,2]
[406961962,1772359844064,-351.0,0.00017934,2]
[406961963,1772359844073,-179.47115924,0.00017972,2]
[406961964,1772359844082,-1224.0,0.00017972,2]
[406961965,1772359844092,-500.0,0.00017972,2]
[406961966,1772359844104,-162.71600095,0.00017972,2]
[406961967,1772359844115,-155.70401297,0.00017972,2]
[406961968,1772359844124,-303.81881414,0.00017972,2]
[406961969,1772359844133,-500.0,0.00017972,2]
[406961970,1772359844143,-168.0,0.00017972,2]
[406961971,1772359844153,-500.0,0.00017972,2]
[406961972,1772359844163,-392.0,0.00017973,2]
[406961973,1772359844172,-150.0,0.00017973,2]
[406961974,1772359844181,-449.20274519,0.0001799,2]
[406961975,1772359844191,-449.20274519,0.0001799,2]
[406961976,1772359844200,-151.0,0.00017995,2]
[406961977,1772359844209,-151.0,0.00017997,2]
[406961978,1772359844218,-31711.637895,0.00017998,2]
[406961979,1772359844227,-84067.9226439,0.00017998,2]
[406961980,1772359844236,-2522.7940437,0.00017998,2]
[406961981,1772359844245,-219.8714796,0.00017998,2]
[406961982,1772359844254,-352.47562623,0.00017998,2]
[406961983,1772359844263,-411.40289111,0.00017999,2]
[406961984,1772359844272,-1036.32016175,0.00017999,5]
[406961985,1772359844282,-500.0,0.00017999,2]
[406961986,1772359844291,-500.0,0.00017999,2]
[406961987,1772359844300,-300.0,0.00017999,2]
[406961988,1772359844309,-500.0,0.00017999,2]
[406961989,1772359844318,-500.0,0.00017999,2]
[406961990,1772359844327,-500.0,0.00017999,2]
[406961991,1772359844338,-152.43247842,0.00017999,2]
[406961992,1772359844348,-300.0,0.00017999,2]
[406961993,1772359844357,-192.44937759,0.00017999,2]
[406961994,1772359844366,-1237251.6416225,0.00018,2]
[406961995,1772359844375,-1789270.62010283,0.00018,2]
[406961996,1772359844384,-354.70698,0.00018,2]
[406961997,1772359844393,-354.70699,0.00018,2]
[406961998,1772359844403,-150.0,0.00018,7]
[406961999,1772359844411,-150.0,0.00018,2]
[406962000,1772359844420,-9376.34070111,0.00018,2]
[406962001,1772359844429,-3041216.10813987,0.00018,2]
[406962002,1772359844444,-10000.17669597,0.00018,2]
[406962003,1772359844456,-414.25753765,0.00018,2]
[406962004,1772359844835,-220.0,0.00011601,2]
[406962005,1772359844845,-1016.60965838,0.00017505,2]
[406962006,1772359844855,-496.0,0.00017808,2]
[406962007,1772359844864,-1621.0,0.00017862,2]
[406962008,1772359844876,-7206.92194357,0.00018,2]
[406962009,1772359844891,-3130.73528493,0.00018,2]
[406962012,1772359845944,-376.11677338,0.00017505,2]
[406962013,1772359845956,-716.03780298,0.00017505,2]
[406962014,1772359845965,-356.873377,0.00018,2]
[406962042,1772361031733,-225.6181,0.00010859,2]
[406962043,1772361031743,-166.66,0.00010959,2]
[406962044,1772361031754,-300.0,0.00011053,2]
[406962045,1772361031763,-219.44895474,0.00011053,2]
[406962046,1772361031840,-980.55104526,0.00011053,2]
[406962047,1772361031850,-300.0,0.00011053,2]
[406962048,1772361031860,-300.0,0.00011053,2]
[406962049,1772361031871,-16910.55,0.00011054,2]
[406962050,1772361031881,-166.66,0.00011088,2]
[406962051,1772361031891,-166.66,0.00011218,2]
[406962052,1772361031902,-166.66,0.00011347,2]
[406962053,1772361031911,-166.66,0.00011477,2]
[406962054,1772361031921,-166.66,0.00011606,2]
[406962055,1772361031932,-589.67699573,0.00011945,2]
[406962056,1772361031944,-4410.32300427,0.00011945,2]
[406962057,1772361031957,-250.0,0.00011945,2]
[406962058,1772361031967,-500.0,0.00011945,2]
[406962059,1772361031977,-250.0,0.00011945,2]
[406962060,1772361031987,-782.66050982,0.00011945,2]
[406962061,1772361031999,-250.0,0.00012055,2]
[406962062,1772361032010,-420.0,0.00012145,2]
[406962063,1772361032020,-1680.0,0.00012158,2]
[406962064,1772361032030,-415.85133049,0.000127,2]
[406962065,1772361032040,-500.0,0.000127,2]
[406962066,1772361032049,-500.0,0.000127,2]
[406962067,1772361032058,-500.0,0.000127,2]
[406962068,1772361032067,-500.0,0.000127,2]
[406962069,1772361032077,-500.0,0.000127,2]
[406962070,1772361032086,-249.388589,0.00013013,2]
[406962071,1772361032096,-233.434435,0.00013014,2]
[406962072,1772361032105,-150.0,0.00013113,2]
[406962073,1772361032115,-8654.85,0.00013114,2]
[406962074,1772361032124,-1000.0,0.00013248,2]
[406962075,1772361032138,-500.0,0.00013248,2]
[406962076,1772361032155,-1000.0,0.00013248,2]
[406962077,1772361032164,-1000.0,0.00013248,2]
[406962078,1772361032174,-350.06934174,0.00013248,2]
[406962079,1772361032186,-2142.0,0.00013374,2]
[406962080,1772361032196,-5040.99,0.00013419,2]
[406962081,1772361032205,-1500.0,0.00013441,2]
[406962082,1772361032342,-2055.56489996,0.00013451,2]
[406962083,1772361032390,-342.59414999,0.00013572,2]
[406962084,1772361032400,-242.0261914,0.00013611,2]
[406962085,1772361032410,-505.14072884,0.00013612,2]
[406962086,1772361032420,-500.0,0.00013612,2]
[406962087,1772361032430,-500.0,0.00013612,2]
[406962088,1772361032440,-215.18450189,0.00013612,2]
[406962089,1772361032449,-151.0,0.00013612,2]
[406962090,1772361032459,-151.0,0.00013612,2]
[406962091,1772361032469,-151.0,0.00013612,2]
[406962092,1772361032478,-151.0,0.00013612,2]
[406962093,1772361032488,-151.0,0.00013612,2]
[406962094,1772361032498,-151.0,0.00013612,2]
[406962095,1772361032507,-151.0,0.00013612,2]
[406962096,1772361032517,-151.0,0.00013612,2]
[406962097,1772361032527,-151.0,0.00013612,2]
[406962098,1772361032536,-151.0,0.00013612,2]
[406962099,1772361032546,-151.0,0.00013612,2]
[406962100,1772361032555,-151.0,0.00013612,2]
[406962101,1772361032565,-151.0,0.00013612,2]
[406962102,1772361032576,-500.0,0.00013612,2]
[406962103,1772361032586,-500.0,0.00013612,2]
[406962104,1772361032596,-500.0,0.00013612,2]
[406962105,1772361032605,-500.0,0.00013612,2]
[406962106,1772361032615,-500.0,0.00013612,2]
[406962107,1772361032626,-500.0,0.00013612,2]
[406962108,1772361032636,-500.0,0.00013612,2]
[406962109,1772361032645,-500.0,0.00013612,2]
[406962110,1772361032655,-500.0,0.00013612,2]
[406962111,1772361032666,-500.0,0.00013612,2]
[406962112,1772361032678,-500.0,0.00013612,2]
[406962113,1772361032698,-500.0,0.00013612,2]
[406962114,1772361032708,-500.0,0.00013612,2]
[406962115,1772361032720,-1057.43,0.00013615,2]
[406962116,1772361032729,-24218.78319668,0.0001362,2]
[406962117,1772361032745,-17294.84911426,0.0001362,2]
[406962118,1772361032762,-303.999998,0.0001362,2]
[406962119,1772361032773,-706.49,0.0001362,2]
[406962122,1772361037854,-640.14698549,0.0001362,2]
[406962123,1772361037871,-5753.47089063,0.0001362,2]
[406962124,1772361038016,-335.96000004,0.0001362,2]
[406962125,1772361038031,-986.1456668,0.0001362,2]
[406962126,1772361038066,-19314.68671659,0.0001362,2]
[406962130,1772361040055,-3554.411,0.0001362,2]
[406962131,1772361040070,-412.0,0.0001362,2]
[406962132,1772361040088,-18098.14643151,0.0001362,2]
[406962133,1772361040101,-500.0,0.00013698,2]
[406962134,1772361040115,-500.0,0.00013698,2]
[406962135,1772361040127,-500.0,0.00013698,2]
[406962136,1772361040142,-500.0,0.00013698,2]
[406962137,1772361040155,-500.0,0.00013698,2]
[406962138,1772361040168,-500.0,0.00013698,2]
[406962139,1772361040184,-500.0,0.00013698,2]
[406962140,1772361040197,-500.0,0.00013698,2]
[406962141,1772361040217,-500.0,0.00013698,2]
[406962142,1772361040232,-500.0,0.00013698,2]
[406962143,1772361040249,-200.0,0.00013699,2]
[406962144,1772361040264,-342.59414999,0.00013707,2]
[406962145,1772361040281,-1852.42,0.00013745,2]
[406962146,1772361040298,-504.04615842,0.00013796,2]
[406962147,1772361040314,-1000.0,0.00013796,2]
[406962148,1772361040329,-1000.0,0.00013796,2]
[406962149,1772361040344,-342.59414999,0.00013841,2]
[406962150,1772361040358,-519.0,0.0001411,2]
[406962151,1772361040369,-5690.22668321,0.00014141,2]
[406962152,1772361040383,-38.19121346,0.00014214,2]
[406962153,1772361040402,-216.80878654,0.00014214,2]
[406962154,1772361040417,-166.66,0.00014241,2]
[406962155,1772361040431,-500.0,0.00014245,2]
[406962156,1772361040446,-484.4008852,0.00014253,2]
[406962157,1772361040457,-484.40088519,0.00014253,2]
[406962158,1772361040472,-679.98,0.00014305,2]
[406962159,1772361040486,-250.0,0.00014348,2]
[406962160,1772361040501,-161.70580153,0.00014559,2]
[406962161,1772361040516,-5239.89376426,0.00014559,2]
[406962162,1772361040543,-288.62711734,0.00014559,2]
[406962163,1772361040555,-166.66,0.00014711,2]
[406962164,1772361040566,-450.0,0.00014714,7]
[406962165,1772361040578,-434.71614325,0.00014714,7]
[406962166,1772361040590,-450.0,0.00014714,7]
[406962167,1772361040602,-150.0,0.00014714,7]
[406962168,1772361040614,-178.86504086,0.00014773,2]
[406962169,1772361040625,-5690.22668313,0.00014976,2]
[406962170,1772361040638,-500.0,0.00015043,2]
[406962171,1772361040649,-166.66,0.00015181,2]
[406962172,1772361040661,-848.13,0.00015301,2]
[406962173,1772361040673,-5690.22668313,0.00015394,2]
[406962174,1772361040686,-433.0,0.00015407,2]
[406962175,1772361040698,-411.40289111,0.00015485,2]
[406962176,1772361040710,-947.57827244,0.00015485,2]
[406962178,1772361040721,-1000.0,0.00015485,2]
[406962180,1772361040731,-848.13,0.00015575,2]
[406962182,1772361040742,-200.0,0.000156,5]
[406962184,1772361040754,-291.793044,0.00015616,7]
[406962186,1772361040765,-200.0,0.00015636,2]
[406962189,1772361040776,-166.66,0.00015652,2]
[406962191,1772361040787,-2899.4506,0.00015673,2]
[406962193,1772361040799,-53413.0165,0.00015673,2]
[406962196,1772361040810,-2500.0,0.00015673,2]
[406962197,1772361040822,-4038.2204,0.00015673,2]
[406962198,1772361040833,-5000.0,0.00015673,2]
[406962199,1772361040844,-400.0,0.000157,5]
[406962200,1772361040856,-631.02945316,0.000157,2]
[406962201,1772361040866,-151.0,0.0001577,2]
[406962202,1772361040878,-500.0,0.00015772,2]
[406962203,1772361040889,-500.0,0.00015772,2]
[406962204,1772361040900,-231.36,0.00015772,2]
[406962205,1772361040911,-500.0,0.00015772,2]
[406962206,1772361040923,-430.77146385,0.00015772,2]
[406962207,1772361040934,-500.0,0.00015772,2]
[406962208,1772361040945,-279.73911043,0.00015772,2]
[406962209,1772361040956,-500.0,0.00015772,2]
[406962210,1772361040967,-500.0,0.00015772,2]
[406962211,1772361040979,-573.88324267,0.00015772,2]
[406962212,1772361040990,-39.85886146,0.00015772,2]
[406962213,1772361041004,-460.14113854,0.00015772,2]
[406962214,1772361041015,-500.0,0.00015772,2]
[406962215,1772361041026,-500.0,0.00015772,2]
[406962216,1772361041038,-500.0,0.00015772,2]
[406962217,1772361041049,-500.0,0.00015772,2]
[406962218,1772361041060,-500.0,0.00015772,2]
[406962219,1772361041072,-500.0,0.00015772,2]
[406962220,1772361041083,-399.41747848,0.00015772,2]
[406962221,1772361041095,-500.0,0.00015772,2]
[406962222,1772361041106,-500.0,0.00015772,2]
[406962223,1772361041117,-500.0,0.00015772,2]
[406962224,1772361041129,-500.0,0.00015772,2]
[406962225,1772361041144,-500.0,0.00015772,2]
[406962226,1772361041156,-500.0,0.00015772,2]
[406962227,1772361041167,-500.0,0.00015772,2]
[406962228,1772361041179,-500.0,0.00015772,2]
[406962229,1772361041191,-500.0,0.00015772,2]
[406962230,1772361041203,-500.0,0.00015772,2]
[406962231,1772361041218,-500.0,0.00015772,2]
[406962232,1772361041232,-500.0,0.00015772,2]
[406962233,1772361041245,-155.23642035,0.00015773,2]
[406962234,1772361041256,-1921.97355576,0.00015773,2]
[406962235,1772361041266,-28515.90233377,0.00015773,2]
[406962236,1772361041284,-1820.89468532,0.00015773,2]
[406962237,1772361041300,-1540.31369974,0.00015773,2]
[406962238,1772361041499,-998.49316968,0.00015773,2]
[406962239,1772361041527,-2003.88937486,0.00015773,2]
[406962240,1772361041543,-2465120.50673663,0.00015773,2]
[406962241,1772361041553,-700.0,0.000158,5]
[406962242,1772361041562,-5690.22668313,0.00015812,2]
[406962243,1772361041572,-848.13,0.00015849,2]
[406962244,1772361041582,-2978.97,0.00015873,2]
[406962245,1772361041591,-548.83,0.00015894,2]
[406962246,1772361041601,-900.0,0.000159,5]
[406962247,1772361041610,-1921.97355575,0.00016009,2]
[406962248,1772361041620,-500.0,0.00016115,2]
[406962249,1772361041629,-7960.06,0.00016116,2]
[406962250,1772361041639,-6580.04,0.00016116,2]
[406962251,1772361041648,-716.48,0.00016116,2]
[406962252,1772361041657,-150.99,0.00016116,2]
[406962253,1772361041667,-6413.35,0.00016116,2]
[406962254,1772361041676,-150.99,0.00016116,2]
[406962255,1772361041686,-9999.99,0.00016116,2]
[406962256,1772361041695,-166.66,0.00016122,2]
[406962257,1772361041705,-848.13,0.00016123,2]
[406962258,1772361041714,-631.02945315,0.0001614,2]
[406962259,1772361041723,-5690.22668313,0.00016229,2]
[406962260,1772361041732,-1921.97355575,0.00016246,2]
[406962261,1772361041741,-174.09452548,0.0001636,2]
[406962262,1772361041751,-160.0,0.0001636,2]